fUST/lending_fUST_20240902
["ID","MTS","AMOUNT","RATE_DAILY","PERIOD"]
[336968044,1725268244170,-500.0,0.00025205,2]
[336968045,1725268244179,-1039.95,0.00025205,2]
[336968046,1725268244189,-952.33,0.00025205,2]
[336968047,1725268244198,-500.0,0.00025205,2]
[336968048,1725268244207,-500.0,0.00025205,2]
[336968049,1725268244217,-500.0,0.00025205,2]
[336968050,1725268244226,-4412.48,0.00025205,2]
[336968051,1725268244235,-500.0,0.00025205,2]
[336968052,1725268244245,-1008.72,0.00025205,2]
[336968053,1725268244255,-966.08,0.00025205,2]
[336968054,1725268244265,-500.0,0.00025205,2]
[336968055,1725268244275,-1168.82,0.00025205,2]
[336968056,1725268244285,-812.27,0.00025205,2]
[336968057,1725268244295,-500.0,0.00025205,2]
[336968058,1725268244304,-500.0,0.00025205,2]
[336968059,1725268244314,-763.87,0.00025205,2]
[336968060,1725268244324,-1739.54,0.00025205,2]
[336968061,1725268244333,-500.0,0.00025205,2]
[336968062,1725268244343,-743.87,0.00025205,2]
[336968063,1725268244352,-581.21,0.00025205,2]
[336968064,1725268244361,-2183.91,0.00025205,2]
[336968065,1725268244371,-978.88,0.00025205,2]
[336968066,1725268244381,-1339.94,0.00025205,2]
[336968067,1725268244391,-500.0,0.00025205,2]
[336968068,1725268244400,-500.0,0.00025205,2]
[336968069,1725268244409,-597.29,0.00025205,2]
[336968070,1725268244419,-500.0,0.00025205,2]
[336968071,1725268244428,-500.0,0.00025205,2]
[336968072,1725268244438,-3000.0,0.0002521,2]
[336968073,1725268244447,-4165.433403,0.0002522,2]
[336968074,1725268244457,-1000.0,0.00025221,2]
[336968075,1725268244467,-1000.0,0.00025221,2]
[336968076,1725268244476,-166.14024004,0.00025379,2]
[336968077,1725268244486,-276.1028353,0.00025469,3]
[336968078,1725268244497,-4138.2,0.00025478,2]
[336968079,1725268244515,-4138.2,0.00025478,2]
[336968080,1725268244526,-4138.2,0.00025478,2]
[336968081,1725268244536,-294.20558066,0.00025478,2]
[336968082,1725268244545,-500.0,0.00025478,2]
[336968083,1725268244555,-500.0,0.00025478,2]
[336968084,1725268244565,-500.0,0.00025478,2]
[336968085,1725268244575,-500.0,0.00025478,2]
[336968086,1725268244585,-500.0,0.00025478,2]
[336968087,1725268244594,-256.58247579,0.00025478,2]
[336968088,1725268244604,-500.0,0.00025478,2]
[336968089,1725268244614,-292.95185728,0.00025478,2]
[336968090,1725268244624,-500.0,0.00025478,2]
[336968091,1725268244634,-500.0,0.00025478,2]
[336968092,1725268244643,-500.0,0.00025478,2]
[336968093,1725268244654,-500.0,0.00025478,2]
[336968094,1725268244663,-500.0,0.00025478,2]
[336968095,1725268244673,-500.0,0.00025478,2]
[336968096,1725268244683,-500.0,0.00025478,2]
[336968097,1725268244693,-500.0,0.00025479,2]
[336968098,1725268244703,-500.0,0.00025479,2]
[336968099,1725268244713,-500.0,0.00025479,2]
[336968100,1725268244723,-500.0,0.00025479,2]
[336968101,1725268244733,-505.07,0.00025479,2]
[336968102,1725268244743,-500.0,0.00025479,2]
[336968103,1725268244757,-627.71,0.00025479,2]
[336968104,1725268244767,-500.0,0.00025479,2]
[336968105,1725268244777,-500.0,0.00025479,2]
[336968106,1725268244787,-500.0,0.00025479,2]
[336968107,1725268244798,-500.0,0.00025479,2]
[336968108,1725268244808,-510.3,0.00025479,2]
[336968109,1725268244818,-500.0,0.00025479,2]
[336968110,1725268244829,-500.0,0.00025479,2]
[336968111,1725268244840,-500.0,0.00025479,2]
[336968112,1725268244849,-500.0,0.00025479,2]
[336968113,1725268244859,-500.0,0.00025479,2]
[336968114,1725268244869,-500.0,0.00025479,2]
[336968115,1725268244878,-500.0,0.00025479,2]
[336968116,1725268244888,-500.0,0.00025479,2]
[336968117,1725268244898,-350.6629984,0.00025479,2]
[336968118,1725268244907,-500.0,0.00025479,2]
[336968119,1725268244917,-1945.44,0.00025479,2]
[336968120,1725268244927,-500.0,0.00025479,2]
[336968121,1725268244936,-500.0,0.00025479,2]
[336968122,1725268244947,-353.22802122,0.00025479,2]
[336968123,1725268244956,-645.42,0.00025479,2]
[336968124,1725268244966,-500.0,0.00025479,2]
[336968125,1725268244976,-500.0,0.00025479,2]
[336968126,1725268244985,-1521.02,0.00025479,2]
[336968127,1725268244998,-500.0,0.00025479,2]
[336968128,1725268245008,-500.0,0.00025479,2]
[336968129,1725268245018,-524.31,0.00025479,2]
[336968130,1725268245028,-500.0,0.00025479,2]
[336968131,1725268245038,-613.13,0.00025479,2]
[336968132,1725268245048,-500.0,0.00025479,2]
[336968133,1725268245058,-500.0,0.00025479,2]
[336968134,1725268245067,-527.33,0.00025479,2]
[336968135,1725268245078,-500.0,0.00025479,2]
[336968136,1725268245087,-536.24,0.00025479,2]
[336968137,1725268245096,-500.0,0.00025479,2]
[336968138,1725268245106,-500.0,0.00025479,2]
[336968139,1725268245115,-588.69,0.00025479,2]
[336968140,1725268245124,-1320.9,0.00025479,2]
[336968141,1725268245134,-500.0,0.00025479,2]
[336968142,1725268245143,-500.0,0.00025479,2]
[336968143,1725268245152,-784.96,0.00025479,2]
[336968144,1725268245161,-887.9,0.00025479,2]
[336968145,1725268245170,-500.0,0.00025479,2]
[336968146,1725268245180,-500.0,0.00025479,2]
[336968147,1725268245189,-500.0,0.00025479,2]
[336968148,1725268245199,-500.0,0.00025479,2]
[336968149,1725268245208,-500.0,0.00025479,2]
[336968150,1725268245218,-784.45,0.00025479,2]
[336968151,1725268245228,-500.0,0.00025479,2]
[336968152,1725268245237,-599.79,0.00025479,2]
[336968153,1725268245246,-556.99,0.00025479,2]
[336968154,1725268245256,-1076.92,0.00025479,2]
[336968155,1725268245265,-808.98,0.00025479,2]
[336968156,1725268245274,-500.0,0.00025479,2]
[336968157,1725268245284,-500.0,0.00025479,2]
[336968158,1725268245294,-500.0,0.00025479,2]
[336968159,1725268245303,-500.0,0.00025479,2]
[336968160,1725268245313,-893.38,0.00025479,2]
[336968161,1725268245323,-500.0,0.00025479,2]
[336968162,1725268245332,-226.57,0.00025479,2]
[336968163,1725268245342,-500.0,0.00025479,2]
[336968164,1725268245351,-957.45,0.00025479,2]
[336968165,1725268245360,-1244.73,0.00025479,2]
[336968166,1725268245369,-500.0,0.00025479,2]
[336968167,1725268245378,-634.67,0.00025479,2]
[336968168,1725268245388,-3102.34,0.00025479,2]
[336968169,1725268245398,-666.4,0.00025479,2]
[336968170,1725268245408,-1717.5,0.00025479,2]
[336968171,1725268245418,-833.93,0.00025479,2]
[336968172,1725268245428,-896.29,0.00025479,2]
[336968173,1725268245438,-500.0,0.00025479,2]
[336968174,1725268245447,-1041.22,0.00025479,2]
[336968175,1725268245456,-721.32,0.00025479,2]
[336968176,1725268245466,-716.55,0.00025479,2]
[336968177,1725268245475,-548.96,0.00025479,2]
[336968178,1725268245485,-500.0,0.00025479,2]
[336968179,1725268245495,-500.0,0.00025479,2]
[336968180,1725268245504,-922.19,0.00025479,2]
[336968181,1725268245514,-1351.76,0.00025479,2]
[336968182,1725268245524,-709.31,0.00025479,2]
[336968183,1725268245534,-1100.92,0.00025479,2]
[336968184,1725268245544,-500.0,0.00025479,2]
[336968185,1725268245554,-725.07,0.00025479,2]
[336968186,1725268245565,-786.24,0.00025479,2]
[336968187,1725268245574,-670.61,0.00025479,2]
[336968188,1725268245584,-752.08,0.00025479,2]
[336968189,1725268245594,-500.0,0.00025479,2]
[336968190,1725268245603,-500.0,0.00025479,2]
[336968191,1725268245612,-1288.89,0.00025479,2]
[336968192,1725268245622,-651.62,0.00025479,2]
[336968193,1725268245632,-4831.17,0.00025479,2]
[336968194,1725268245641,-500.0,0.00025479,2]
[336968195,1725268245650,-500.0,0.00025479,2]
[336968196,1725268245659,-500.0,0.00025479,2]
[336968197,1725268245669,-1039.95,0.00025479,2]
[336968198,1725268245678,-952.33,0.00025479,2]
[336968199,1725268245688,-500.0,0.00025479,2]
[336968200,1725268245697,-500.0,0.00025479,2]
[336968201,1725268245707,-299.00555019,0.00025479,2]
[336968202,1725268245716,-4412.48,0.00025479,2]
[336968203,1725268245726,-343.53873727,0.00025479,2]
[336968204,1725268245736,-966.08,0.00025479,2]
[336968205,1725268245746,-1008.72,0.00025479,2]
[336968206,1725268245760,-500.0,0.00025479,2]
[336968207,1725268245769,-1168.82,0.00025479,2]
[336968208,1725268245778,-812.27,0.00025479,2]
[336968209,1725268245788,-500.0,0.00025479,2]
[336968210,1725268245798,-500.0,0.00025479,2]
[336968212,1725268245807,-763.87,0.00025479,2]
[336968213,1725268245818,-1739.54,0.00025479,2]
[336968215,1725268245827,-743.87,0.00025479,2]
[336968216,1725268245837,-581.21,0.00025479,2]
[336968217,1725268245847,-2183.91,0.00025479,2]
[336968218,1725268245857,-978.88,0.00025479,2]
[336968219,1725268245868,-1339.94,0.00025479,2]
[336968220,1725268245877,-500.0,0.00025479,2]
[336968221,1725268245887,-597.29,0.00025479,2]
[336968222,1725268245896,-500.0,0.00025479,2]
[336968223,1725268245906,-500.0,0.00025479,2]
[336968224,1725268245915,-1000.0,0.00025521,2]
[336968225,1725268245926,-500.0,0.00025543,2]
[336968226,1725268245935,-500.0,0.00025543,2]
[336968227,1725268245945,-4138.2,0.00025752,2]
[336968228,1725268245954,-4138.2,0.00025752,2]
[336968229,1725268245964,-500.0,0.00025753,2]
[336968230,1725268245973,-500.0,0.00025753,2]
[336968231,1725268245983,-243.13613408,0.00025753,2]
[336968232,1725268245992,-500.0,0.00025753,2]
[336968233,1725268246001,-505.07,0.00025753,2]
[336968234,1725268246010,-500.0,0.00025753,2]
[336968235,1725268246020,-627.71,0.00025753,2]
[336968236,1725268246029,-500.0,0.00025753,2]
[336968237,1725268246039,-500.0,0.00025753,2]
[336968238,1725268246049,-500.0,0.00025753,2]
[336968239,1725268246059,-500.0,0.00025753,2]
[336968240,1725268246068,-510.3,0.00025753,2]
[336968241,1725268246078,-261.22304448,0.00025753,2]
[336968242,1725268246087,-500.0,0.00025753,2]
[336968243,1725268246096,-500.0,0.00025753,2]
[336968244,1725268246105,-500.0,0.00025753,2]
[336968245,1725268246114,-500.0,0.00025753,2]
[336968246,1725268246124,-500.0,0.00025753,2]
[336968247,1725268246133,-500.0,0.00025753,2]
[336968248,1725268246143,-500.0,0.00025753,2]
[336968249,1725268246152,-500.0,0.00025753,2]
[336968250,1725268246161,-1945.44,0.00025753,2]
[336968251,1725268246171,-500.0,0.00025753,2]
[336968252,1725268246182,-500.0,0.00025753,2]
[336968254,1725268246191,-645.42,0.00025753,2]
[336968255,1725268246201,-500.0,0.00025753,2]
[336968256,1725268246210,-500.0,0.00025753,2]
[336968257,1725268246219,-1521.02,0.00025753,2]
[336968258,1725268246230,-500.0,0.00025753,2]
[336968259,1725268246239,-500.0,0.00025753,2]
[336968260,1725268246249,-524.31,0.00025753,2]
[336968261,1725268246257,-500.0,0.00025753,2]
[336968262,1725268246268,-613.13,0.00025753,2]
[336968263,1725268246278,-500.0,0.00025753,2]
[336968264,1725268246287,-500.0,0.00025753,2]
[336968265,1725268246296,-527.33,0.00025753,2]
[336968266,1725268246306,-503.34693228,0.00025753,2]
[336968267,1725268246414,-536.24,0.00025753,2]
[336968268,1725268246435,-500.0,0.00025753,2]
[336968269,1725268246446,-500.0,0.00025753,2]
[336968270,1725268246456,-588.69,0.00025753,2]
[336968271,1725268246467,-1320.9,0.00025753,2]
[336968272,1725268246477,-530.88,0.00025753,2]
[336968273,1725268246486,-500.0,0.00025753,2]
[336968274,1725268246496,-784.96,0.00025753,2]
[336968275,1725268246506,-887.9,0.00025753,2]
[336968276,1725268246515,-500.0,0.00025753,2]
[336968277,1725268246525,-500.0,0.00025753,2]
[336968278,1725268246535,-500.0,0.00025753,2]
[336968279,1725268246545,-500.0,0.00025753,2]
[336968280,1725268246555,-784.45,0.00025753,2]
[336968281,1725268246567,-500.0,0.00025753,2]
[336968282,1725268246577,-599.79,0.00025753,2]
[336968283,1725268246586,-556.99,0.00025753,2]
[336968284,1725268246596,-1076.92,0.00025753,2]
[336968285,1725268246606,-808.98,0.00025753,2]
[336968286,1725268246616,-500.0,0.00025753,2]
[336968287,1725268246626,-500.0,0.00025753,2]
[336968288,1725268246635,-500.0,0.00025753,2]
[336968289,1725268246645,-500.0,0.00025753,2]
[336968290,1725268246655,-893.38,0.00025753,2]
[336968291,1725268246664,-500.0,0.00025753,2]
[336968292,1725268246674,-500.0,0.00025753,2]
[336968293,1725268246686,-957.45,0.00025753,2]
[336968294,1725268246696,-1244.73,0.00025753,2]
[336968295,1725268246706,-500.0,0.00025753,2]
[336968296,1725268246715,-634.67,0.00025753,2]
[336968297,1725268246725,-3102.34,0.00025753,2]
[336968298,1725268246736,-666.4,0.00025753,2]
[336968299,1725268246748,-1717.5,0.00025753,2]
[336968300,1725268246762,-833.93,0.00025753,2]
[336968301,1725268246772,-896.29,0.00025753,2]
[336968302,1725268246785,-500.0,0.00025753,2]
[336968303,1725268246797,-1041.22,0.00025753,2]
[336968304,1725268246806,-721.32,0.00025753,2]
[336968305,1725268246818,-716.55,0.00025753,2]
[336968306,1725268246829,-548.96,0.00025753,2]
[336968307,1725268246840,-500.0,0.00025753,2]
[336968308,1725268246849,-500.0,0.00025753,2]
[336968309,1725268246858,-922.19,0.00025753,2]
[336968310,1725268246868,-1351.76,0.00025753,2]
[336968311,1725268246877,-709.31,0.00025753,2]
[336968312,1725268246887,-1100.92,0.00025753,2]
[336968313,1725268246898,-500.0,0.00025753,2]
[336968314,1725268246909,-725.07,0.00025753,2]
[336968315,1725268246920,-786.24,0.00025753,2]
[336968316,1725268246933,-670.61,0.00025753,2]
[336968317,1725268246945,-752.08,0.00025753,2]
[336968318,1725268246955,-500.0,0.00025753,2]
[336968319,1725268246966,-500.0,0.00025753,2]
[336968320,1725268246975,-1288.89,0.00025753,2]
[336968321,1725268246985,-651.62,0.00025753,2]
[336968322,1725268246995,-500.0,0.00025753,2]
[336968323,1725268247005,-4831.17,0.00025753,2]
[336968324,1725268247014,-500.0,0.00025753,2]
[336968325,1725268247024,-500.0,0.00025753,2]
[336968326,1725268247035,-1039.95,0.00025753,2]
[336968327,1725268247045,-952.33,0.00025753,2]
[336968328,1725268247055,-500.0,0.00025753,2]
[336968329,1725268247065,-500.0,0.00025753,2]
[336968330,1725268247075,-4412.48,0.00025753,2]
[336968331,1725268247084,-1008.72,0.00025753,2]
[336968332,1725268247095,-966.08,0.00025753,2]
[336968333,1725268247104,-500.0,0.00025753,2]
[336968334,1725268247114,-1168.82,0.00025753,2]
[336968335,1725268247122,-812.27,0.00025753,2]
[336968336,1725268247131,-500.0,0.00025753,2]
[336968337,1725268247140,-763.87,0.00025753,2]
[336968338,1725268247150,-1739.54,0.00025753,2]
[336968339,1725268247159,-743.87,0.00025753,2]
[336968340,1725268247168,-581.21,0.00025753,2]
[336968341,1725268247178,-2183.91,0.00025753,2]
[336968342,1725268247188,-978.88,0.00025753,2]
[336968343,1725268247198,-1339.94,0.00025753,2]
[336968344,1725268247208,-500.0,0.00025753,2]
[336968345,1725268247219,-597.29,0.00025753,2]
[336968346,1725268247228,-500.0,0.00025753,2]
[336968347,1725268247238,-500.0,0.00025753,2]
[336968348,1725268247248,-166.14024004,0.0002579,2]
[336968349,1725268247258,-160.0,0.0002589,2]
[336968350,1725268247267,-153.0,0.00025963,2]
[336968351,1725268247278,-1000.0,0.00026,2]
[336968352,1725268247289,-383.358185,0.00026001,2]
[336968353,1725268247298,-155.569971,0.00026001,2]
[336968354,1725268247307,-466.059004,0.00026001,2]
[336968355,1725268247317,-276.1028353,0.00026017,3]
[336968356,1725268247328,-4138.2,0.00026025,2]
[336968357,1725268247339,-4138.2,0.00026026,2]
[336968358,1725268247351,-4138.2,0.00026026,2]
[336968359,1725268247361,-500.0,0.00026027,2]
[336968360,1725268247371,-500.0,0.00026027,2]
[336968361,1725268247381,-500.0,0.00026027,2]
[336968362,1725268247391,-505.07,0.00026027,2]
[336968363,1725268247401,-500.0,0.00026027,2]
[336968364,1725268247411,-627.71,0.00026027,2]
[336968365,1725268247421,-523.29073008,0.00026027,2]
[336968366,1725268247431,-500.0,0.00026027,2]
[336968367,1725268247443,-500.0,0.00026027,2]
[336968368,1725268247454,-500.0,0.00026027,2]
[336968369,1725268247465,-510.3,0.00026027,2]
[336968370,1725268247475,-500.0,0.00026027,2]
[336968371,1725268247484,-500.0,0.00026027,2]
[336968372,1725268247493,-500.0,0.00026027,2]
[336968373,1725268247503,-500.0,0.00026027,2]
[336968374,1725268247513,-500.0,0.00026027,2]
[336968375,1725268247522,-500.0,0.00026027,2]
[336968376,1725268247532,-500.0,0.00026027,2]
[336968377,1725268247541,-500.0,0.00026027,2]
[336968378,1725268247552,-1945.44,0.00026027,2]
[336968379,1725268247561,-500.0,0.00026027,2]
[336968380,1725268247572,-461.39023639,0.00026027,2]
[336968381,1725268247582,-645.42,0.00026027,2]
[336968382,1725268247592,-500.0,0.00026027,2]
[336968383,1725268247601,-500.0,0.00026027,2]
[336968384,1725268247610,-1521.02,0.00026027,2]
[336968385,1725268247620,-500.0,0.00026027,2]
[336968386,1725268247631,-500.0,0.00026027,2]
[336968387,1725268247643,-524.31,0.00026027,2]
[336968388,1725268247654,-500.0,0.00026027,2]
[336968389,1725268247664,-613.13,0.00026027,2]
[336968390,1725268247675,-384.59419038,0.00026027,2]
[336968391,1725268247684,-500.0,0.00026027,2]
[336968392,1725268247693,-527.33,0.00026027,2]
[336968393,1725268247703,-536.24,0.00026027,2]
[336968394,1725268247712,-500.0,0.00026027,2]
[336968395,1725268247722,-500.0,0.00026027,2]
[336968396,1725268247733,-588.69,0.00026027,2]
[336968397,1725268247745,-1320.9,0.00026027,2]
[336968398,1725268247760,-500.0,0.00026027,2]
[336968399,1725268247770,-784.96,0.00026027,2]
[336968400,1725268247780,-887.9,0.00026027,2]
[336968401,1725268247795,-500.0,0.00026027,2]
[336968402,1725268247810,-500.0,0.00026027,2]
[336968403,1725268247825,-500.0,0.00026027,2]
[336968404,1725268247840,-500.0,0.00026027,2]
[336968405,1725268247851,-784.45,0.00026027,2]
[336968406,1725268247864,-500.0,0.00026027,2]
[336968407,1725268247877,-599.79,0.00026027,2]
[336968408,1725268247890,-556.99,0.00026027,2]
[336968409,1725268247903,-1076.92,0.00026027,2]
[336968410,1725268247917,-808.98,0.00026027,2]
[336968411,1725268247929,-500.0,0.00026027,2]
[336968412,1725268247943,-500.0,0.00026027,2]
[336968413,1725268247960,-500.0,0.00026027,2]
[336968414,1725268247973,-500.0,0.00026027,2]
[336968415,1725268247986,-893.38,0.00026027,2]
[336968416,1725268247999,-500.0,0.00026027,2]
[336968417,1725268248012,-500.0,0.00026027,2]
[336968418,1725268248026,-957.45,0.00026027,2]
[336968419,1725268248040,-1244.73,0.00026027,2]
[336968420,1725268248051,-500.0,0.00026027,2]
[336968421,1725268248063,-634.67,0.00026027,2]
[336968422,1725268248074,-3102.34,0.00026027,2]
[336968423,1725268248088,-666.4,0.00026027,2]
[336968424,1725268248099,-1717.5,0.00026027,2]
[336968425,1725268248113,-833.93,0.00026027,2]
[336968426,1725268248127,-896.29,0.00026027,2]
[336968427,1725268248141,-500.0,0.00026027,2]
[336968428,1725268248154,-1041.22,0.00026027,2]
[336968429,1725268248169,-721.32,0.00026027,2]
[336968430,1725268248183,-716.55,0.00026027,2]
[336968431,1725268248195,-548.96,0.00026027,2]
[336968432,1725268248209,-500.0,0.00026027,2]
[336968433,1725268248220,-500.0,0.00026027,2]
[336968434,1725268248231,-922.19,0.00026027,2]
[336968435,1725268248242,-1351.76,0.00026027,2]
[336968436,1725268248256,-709.31,0.00026027,2]
[336968437,1725268248270,-1100.92,0.00026027,2]
[336968438,1725268248284,-500.0,0.00026027,2]
[336968439,1725268248297,-725.07,0.00026027,2]
[336968440,1725268248308,-786.24,0.00026027,2]
[336968441,1725268248323,-670.61,0.00026027,2]
[336968442,1725268248335,-752.08,0.00026027,2]
[336968443,1725268248351,-500.0,0.00026027,2]
[336968444,1725268248364,-500.0,0.00026027,2]
[336968445,1725268248375,-1288.89,0.00026027,2]
[336968446,1725268248386,-651.62,0.00026027,2]
[336968447,1725268248397,-500.0,0.00026027,2]
[336968448,1725268248409,-4831.17,0.00026027,2]
[336968449,1725268248420,-500.0,0.00026027,2]
[336968450,1725268248432,-500.0,0.00026027,2]
[336968451,1725268248445,-1039.95,0.00026027,2]
[336968452,1725268248458,-952.33,0.00026027,2]
[336968453,1725268248470,-500.0,0.00026027,2]
[336968454,1725268248481,-500.0,0.00026027,2]
[336968455,1725268248493,-4412.48,0.00026027,2]
[336968456,1725268248514,-1008.72,0.00026027,2]
[336968457,1725268248526,-966.08,0.00026027,2]
[336968458,1725268248537,-500.0,0.00026027,2]
[336968459,1725268248548,-1168.82,0.00026027,2]
[336968460,1725268248559,-812.27,0.00026027,2]
[336968461,1725268248571,-500.0,0.00026027,2]
[336968462,1725268248582,-763.87,0.00026027,2]
[336968463,1725268248593,-1739.54,0.00026027,2]
[336968464,1725268248604,-743.87,0.00026027,2]
[336968465,1725268248616,-581.21,0.00026027,2]
[336968466,1725268248628,-2183.91,0.00026027,2]
[336968467,1725268248638,-978.88,0.00026027,2]
[336968468,1725268248650,-1339.94,0.00026027,2]
[336968469,1725268248661,-500.0,0.00026027,2]
[336968470,1725268248673,-597.29,0.00026027,2]
[336968471,1725268248684,-500.0,0.00026027,2]
[336968472,1725268248696,-500.0,0.00026027,2]
[336968473,1725268248707,-523.0,0.00026115,2]
[336968474,1725268248718,-150.0,0.00026115,2]
[336968475,1725268248729,-1500.0,0.00026119,2]
[336968476,1725268248741,-1500.0,0.00026119,2]
[336968477,1725268248760,-166.14024004,0.00026201,2]
[336968478,1725268248771,-276.1028353,0.00026291,3]
[336968479,1725268248783,-4138.2,0.000263,2]
[336968480,1725268248795,-4138.2,0.000263,2]
[336968481,1725268248809,-4138.2,0.000263,2]
[336968482,1725268248820,-4138.2,0.000263,2]
[336968483,1725268248833,-4138.39,0.000263,2]
[336968484,1725268248845,-500.0,0.00026301,2]
[336968485,1725268248857,-500.0,0.00026301,2]
[336968486,1725268248868,-500.0,0.00026301,2]
[336968487,1725268248879,-505.07,0.00026301,2]
[336968488,1725268248891,-185.61653586,0.00026301,2]
[336968489,1725268248902,-627.71,0.00026301,2]
[336968490,1725268248913,-500.0,0.00026301,2]
[336968491,1725268248925,-500.0,0.00026301,2]
[336968492,1725268248936,-500.0,0.00026301,2]
[336968493,1725268248948,-510.3,0.00026301,2]
[336968494,1725268248960,-500.0,0.00026301,2]
[336968495,1725268248972,-500.0,0.00026301,2]
[336968496,1725268248984,-500.0,0.00026301,2]
[336968497,1725268248996,-500.0,0.00026301,2]
[336968498,1725268249010,-500.0,0.00026301,2]
[336968499,1725268249021,-500.0,0.00026301,2]
[336968500,1725268249034,-500.0,0.00026301,2]
[336968501,1725268249045,-500.0,0.00026301,2]
[336968502,1725268249057,-1945.44,0.00026301,2]
[336968503,1725268249068,-500.0,0.00026301,2]
[336968504,1725268249079,-645.42,0.00026301,2]
[336968505,1725268249090,-500.0,0.00026301,2]
[336968506,1725268249101,-500.0,0.00026301,2]
[336968507,1725268249112,-1521.02,0.00026301,2]
[336968508,1725268249123,-500.0,0.00026301,2]
[336968509,1725268249135,-151.0,0.00026301,7]
[336968510,1725268249147,-500.0,0.00026301,2]
[336968511,1725268249159,-524.31,0.00026301,2]
[336968512,1725268249170,-500.0,0.00026301,2]
[336968513,1725268249181,-613.13,0.00026301,2]
[336968514,1725268249190,-500.0,0.00026301,2]
[336968515,1725268249201,-527.33,0.00026301,2]
[336968516,1725268249211,-536.24,0.00026301,2]
[336968517,1725268249221,-500.0,0.00026301,2]
[336968518,1725268249231,-500.0,0.00026301,2]
[336968519,1725268249241,-588.69,0.00026301,2]
[336968520,1725268249253,-1320.9,0.00026301,2]
[336968521,1725268249264,-500.0,0.00026301,2]
[336968522,1725268249274,-784.96,0.00026301,2]
[336968523,1725268249284,-887.9,0.00026301,2]
[336968524,1725268249294,-500.0,0.00026301,2]
[336968525,1725268249304,-500.0,0.00026301,2]
[336968526,1725268249315,-500.0,0.00026301,2]
[336968527,1725268249326,-500.0,0.00026301,2]
[336968528,1725268249336,-784.45,0.00026301,2]
[336968529,1725268249346,-500.0,0.00026301,2]
[336968530,1725268249357,-1076.92,0.00026301,2]
[336968531,1725268249551,-599.79,0.00026301,2]
[336968532,1725268249571,-556.99,0.00026301,2]
[336968533,1725268249585,-808.98,0.00026301,2]
[336968534,1725268249594,-500.0,0.00026301,2]
[336968535,1725268249604,-500.0,0.00026301,2]
[336968536,1725268249614,-500.0,0.00026301,2]
[336968537,1725268249623,-500.0,0.00026301,2]
[336968538,1725268249633,-893.38,0.00026301,2]
[336968539,1725268249642,-500.0,0.00026301,2]
[336968540,1725268249653,-500.0,0.00026301,2]
[336968541,1725268249662,-957.45,0.00026301,2]
[336968542,1725268249672,-1244.73,0.00026301,2]
[336968543,1725268249681,-500.0,0.00026301,2]
[336968544,1725268249691,-634.67,0.00026301,2]
[336968545,1725268249700,-3102.34,0.00026301,2]
[336968546,1725268249710,-666.4,0.00026301,2]